fUSD/lending_fUSD_20250415
["ID","MTS","AMOUNT","RATE_DAILY","PERIOD"]
[358104148,1744719118601,152.5859776,0.0001782,2]
[358104149,1744719121485,300.0,0.00017999,2]
[358104150,1744719122173,-2622290.55161558,0.00018,2]
[358104152,1744719525401,6884.22564763,0.0002,3]
[358104153,1744719573770,302.0,0.00027,30]
[358104154,1744719608434,1000.0,0.00017485,2]
[358104155,1744719616225,100000.0,0.000195,3]
[358104156,1744719664128,100000.0,0.00019,3]
[358104159,1744719709528,2000.0,0.00027,30]
[358104160,1744719737338,7415.19673875,0.00017503,2]
[358104161,1744719737361,10000.0,0.00017503,2]
[358104162,1744719737383,10000.0,0.00017503,2]
[358104163,1744719737405,10000.0,0.00017503,2]
[358104164,1744719737425,10000.0,0.00017503,2]
[358104165,1744719737446,10000.0,0.00017503,2]
[358104166,1744719737468,10000.0,0.00017503,2]
[358104167,1744719737488,10000.0,0.00017503,2]
[358104168,1744719737508,10000.0,0.00017503,2]
[358104169,1744719868996,250.0,0.00017478,2]
[358104171,1744719923344,1999.92944274,0.00027,30]
[358104172,1744719964070,200.0,0.00017512,7]
[358104178,1744720046601,1205.1,0.00015579,2]
[358104182,1744720122220,3634.05,0.00017447,2]
[358104184,1744720129389,447.18314843,0.00013368,2]
[358104197,1744720231792,-254.754461,0.0001773,2]
[358104198,1744720231803,-811.6394958,0.0001782,2]
[358104226,1744720237842,-1857.3805042,0.0001782,2]
[358104227,1744720237852,-250.0,0.0001782,2]
[358104228,1744720237862,-152.5859776,0.0001782,2]
[358104229,1744720237871,-1205.1,0.00017843,2]
[358104230,1744720237880,-158.7933823,0.000179,2]
[358104231,1744720237890,-284.06310581,0.000179,2]
[358104232,1744720237901,-347.62722656,0.000179,2]
[358104233,1744720237911,-250.0,0.00017955,2]
[358104234,1744720237921,-156.3330218,0.00017973,2]
[358104235,1744720237929,-410.33492546,0.00017973,2]
[358104236,1744720237938,-500.0,0.00017973,2]
[358104237,1744720237948,-300.0,0.00017988,2]
[358104238,1744720237957,-300.0,0.00017988,2]
[358104239,1744720237968,-305.26405262,0.00017989,2]
[358104240,1744720237977,-668.65185757,0.00017989,2]
[358104241,1744720237987,-207.4,0.00017989,2]
[358104242,1744720237998,-602.467,0.00017998,2]
[358104243,1744720238008,-525.38405743,0.00017999,2]
[358104244,1744720238018,-500.0,0.00017999,2]
[358104245,1744720238028,-500.0,0.00017999,2]
[358104246,1744720238037,-388.87507812,0.00017999,2]
[358104247,1744720238047,-386.44573778,0.00017999,2]
[358104248,1744720238057,-500.0,0.00017999,2]
[358104249,1744720238067,-530.34922434,0.00017999,2]
[358104250,1744720238077,-500.0,0.00017999,2]
[358104251,1744720238087,-122.1408365,0.00017999,2]
[358104252,1744720238100,-42.8191635,0.00017999,2]
[358104253,1744720238114,-352.20317477,0.00017999,2]
[358104254,1744720238124,-514.98,0.00017999,2]
[358104256,1744720238134,-500.0,0.00017999,2]
[358104258,1744720238145,-500.0,0.00017999,2]
[358104259,1744720238155,-500.0,0.00017999,2]
[358104260,1744720238165,-500.0,0.00017999,2]
[358104261,1744720238175,-500.0,0.00017999,2]
[358104262,1744720238185,-508.9210108,0.00017999,2]
[358104263,1744720238194,-500.0,0.00017999,2]
[358104264,1744720238204,-500.0,0.00017999,2]
[358104265,1744720238214,-505.65946452,0.00017999,2]
[358104266,1744720238224,-500.0,0.00017999,2]
[358104267,1744720238233,-500.0,0.00017999,2]
[358104268,1744720238242,-500.0,0.00017999,2]
[358104270,1744720238252,-500.0,0.00017999,2]
[358104271,1744720238262,-500.0,0.00017999,2]
[358104272,1744720238272,-500.0,0.00017999,2]
[358104273,1744720238283,-500.0,0.00017999,2]
[358104274,1744720238294,-500.0,0.00017999,2]
[358104275,1744720238304,-274.4919359,0.00017999,2]
[358104276,1744720238317,-225.5080641,0.00017999,2]
[358104277,1744720238327,-500.0,0.00017999,2]
[358104278,1744720238336,-500.0,0.00017999,2]
[358104279,1744720238346,-500.0,0.00017999,2]
[358104280,1744720238356,-500.0,0.00017999,2]
[358104281,1744720238366,-243.82473281,0.00017999,2]
[358104282,1744720238376,-500.0,0.00017999,2]
[358104283,1744720238389,-500.0,0.00017999,2]
[358104284,1744720238400,-500.0,0.00017999,2]
[358104285,1744720238410,-500.0,0.00017999,2]
[358104286,1744720238420,-500.0,0.00017999,2]
[358104287,1744720238430,-500.0,0.00017999,2]
[358104288,1744720238439,-500.0,0.00017999,2]
[358104289,1744720238448,-500.0,0.00017999,2]
[358104290,1744720238458,-500.0,0.00017999,2]
[358104291,1744720238470,-500.0,0.00017999,2]
[358104292,1744720238481,-513.51151106,0.00017999,2]
[358104293,1744720238491,-500.0,0.00017999,2]
[358104294,1744720238500,-500.0,0.00017999,2]
[358104295,1744720238509,-262.54528244,0.00017999,2]
[358104296,1744720238526,-237.45471756,0.00017999,2]
[358104297,1744720238535,-500.0,0.00017999,2]
[358104298,1744720238545,-500.0,0.00017999,2]
[358104299,1744720238555,-354.03,0.00017999,2]
[358104300,1744720238563,-500.0,0.00017999,2]
[358104301,1744720238573,-503.36067534,0.00017999,2]
[358104302,1744720238583,-500.0,0.00017999,2]
[358104303,1744720238592,-500.0,0.00017999,2]
[358104304,1744720238602,-537.34179468,0.00017999,2]
[358104305,1744720238611,-500.0,0.00017999,2]
[358104306,1744720238621,-500.0,0.00017999,2]
[358104307,1744720238631,-555.40129222,0.00017999,2]
[358104308,1744720238641,-500.0,0.00017999,2]
[358104309,1744720238653,-500.0,0.00017999,2]
[358104310,1744720238662,-500.0,0.00017999,2]
[358104311,1744720238671,-176.9034772,0.00017999,2]
[358104312,1744720238683,-332.49907933,0.00017999,2]
[358104313,1744720238693,-500.0,0.00017999,2]
[358104314,1744720238702,-527.84307565,0.00017999,2]
[358104315,1744720238712,-500.0,0.00017999,2]
[358104316,1744720238723,-500.0,0.00017999,2]
[358104317,1744720238732,-553.05804531,0.00017999,2]
[358104318,1744720238743,-525.99799707,0.00017999,2]
[358104319,1744720238753,-500.0,0.00017999,2]
[358104320,1744720238762,-500.0,0.00017999,2]
[358104321,1744720238772,-500.0,0.00017999,2]
[358104322,1744720238782,-514.68407597,0.00017999,2]
[358104323,1744720238792,-500.0,0.00017999,2]
[358104324,1744720238802,-500.0,0.00017999,2]
[358104325,1744720238811,-500.0,0.00017999,2]
[358104326,1744720238821,-500.0,0.00017999,2]
[358104327,1744720238830,-500.0,0.00017999,2]
[358104328,1744720238841,-500.0,0.00017999,2]
[358104329,1744720238851,-500.0,0.00017999,2]
[358104330,1744720238860,-500.0,0.00017999,2]
[358104331,1744720238870,-500.0,0.00017999,2]
[358104332,1744720238879,-500.0,0.00017999,2]
[358104333,1744720238889,-500.0,0.00017999,2]
[358104334,1744720238901,-500.0,0.00017999,2]
[358104335,1744720238910,-500.0,0.00017999,2]
[358104336,1744720238920,-500.0,0.00017999,2]
[358104337,1744720238930,-500.0,0.00017999,2]
[358104338,1744720238940,-500.0,0.00017999,2]
[358104339,1744720238949,-325.12618709,0.00017999,2]
[358104340,1744720238959,-381.14,0.00017999,2]
[358104341,1744720238969,-200.0,0.00017999,2]
[358104342,1744720238979,-573.57,0.00017999,2]
[358104343,1744720238989,-1000.0,0.00017999,2]
[358104344,1744720239007,-500.0,0.00017999,2]
[358104345,1744720239018,-500.0,0.00017999,2]
[358104346,1744720239028,-500.0,0.00017999,2]
[358104347,1744720239038,-500.0,0.00017999,2]
[358104348,1744720239048,-500.0,0.00017999,2]
[358104349,1744720239058,-500.0,0.00017999,2]
[358104350,1744720239067,-500.0,0.00017999,2]
[358104351,1744720239077,-2069.0,0.00017999,2]
[358104352,1744720239087,-500.0,0.00017999,2]
[358104353,1744720239097,-500.0,0.00017999,2]
[358104354,1744720239107,-187.75974797,0.00017999,2]
[358104355,1744720239116,-500.0,0.00017999,2]
[358104356,1744720239126,-500.0,0.00017999,2]
[358104357,1744720239136,-1404.0,0.00017999,2]
[358104358,1744720239148,-178.64796765,0.00017999,2]
[358104359,1744720239158,-500.0,0.00017999,2]
[358104360,1744720239167,-500.0,0.00017999,2]
[358104361,1744720239177,-282.78264585,0.00017999,2]
[358104362,1744720239187,-500.0,0.00017999,2]
[358104363,1744720239198,-500.0,0.00017999,2]
[358104364,1744720239208,-193.16,0.00017999,2]
[358104365,1744720239218,-500.0,0.00017999,2]
[358104366,1744720239228,-513.10596433,0.00017999,2]
[358104367,1744720239238,-500.0,0.00017999,2]
[358104368,1744720239248,-500.0,0.00017999,2]
[358104369,1744720239257,-500.0,0.00017999,2]
[358104370,1744720239267,-524.39,0.00017999,2]
[358104371,1744720239277,-150.0,0.00017999,2]
[358104372,1744720239287,-500.0,0.00017999,2]
[358104373,1744720239297,-500.0,0.00017999,2]
[358104374,1744720239307,-500.0,0.00017999,2]
[358104375,1744720239318,-500.0,0.00017999,2]
[358104376,1744720239327,-500.0,0.00017999,2]
[358104377,1744720239337,-500.0,0.00017999,2]
[358104378,1744720239347,-500.0,0.00017999,2]
[358104379,1744720239356,-500.18897332,0.00017999,2]
[358104380,1744720239367,-500.0,0.00017999,2]
[358104381,1744720239377,-500.0,0.00017999,2]
[358104382,1744720239388,-500.0,0.00017999,2]
[358104383,1744720239401,-500.0,0.00017999,2]
[358104384,1744720239411,-500.0,0.00017999,2]
[358104385,1744720239420,-500.0,0.00017999,2]
[358104386,1744720239431,-500.0,0.00017999,2]
[358104387,1744720239441,-500.0,0.00017999,2]
[358104388,1744720239451,-500.0,0.00017999,2]
[358104389,1744720239461,-500.0,0.00017999,2]
[358104390,1744720239470,-500.0,0.00017999,2]
[358104391,1744720239480,-500.0,0.00017999,2]
[358104392,1744720239490,-500.0,0.00017999,2]
[358104393,1744720239500,-500.0,0.00017999,2]
[358104394,1744720239510,-500.0,0.00017999,2]
[358104395,1744720239519,-500.0,0.00017999,2]
[358104397,1744720239529,-500.0,0.00017999,2]
[358104398,1744720239540,-500.0,0.00017999,2]
[358104399,1744720239560,-500.0,0.00017999,2]
[358104400,1744720239570,-500.0,0.00017999,2]
[358104401,1744720239579,-500.0,0.00017999,2]
[358104402,1744720239589,-507.34,0.00017999,2]
[358104403,1744720239598,-500.0,0.00017999,2]
[358104404,1744720239607,-500.0,0.00017999,2]
[358104405,1744720239616,-500.0,0.00017999,2]
[358104406,1744720239625,-500.0,0.00017999,2]
[358104407,1744720239635,-500.0,0.00017999,2]
[358104408,1744720239644,-500.0,0.00017999,2]
[358104409,1744720239656,-462.52,0.00017999,2]
[358104410,1744720239666,-237.0,0.00017999,2]
[358104411,1744720239676,-500.0,0.00017999,2]
[358104413,1744720239686,-358.6435958,0.00017999,2]
[358104414,1744720239696,-500.0,0.00017999,2]
[358104415,1744720239706,-500.0,0.00017999,2]
[358104416,1744720239716,-507.2,0.00017999,2]
[358104417,1744720239725,-500.0,0.00017999,2]
[358104418,1744720239734,-500.0,0.00017999,2]
[358104419,1744720239744,-500.0,0.00017999,2]
[358104420,1744720239753,-489.39448947,0.00017999,2]
[358104421,1744720239762,-568.56,0.00017999,2]
[358104422,1744720239772,-500.0,0.00017999,2]
[358104423,1744720239782,-155.1566903,0.00017999,2]
[358104424,1744720239792,-500.0,0.00017999,2]
[358104425,1744720239802,-500.0,0.00017999,2]
[358104426,1744720239811,-150.0,0.00017999,2]
[358104427,1744720239822,-626.18646801,0.00017999,2]
[358104428,1744720239831,-500.0,0.00017999,2]
[358104429,1744720239841,-500.0,0.00017999,2]
[358104430,1744720239851,-500.0,0.00017999,2]
[358104431,1744720239866,-346.18,0.00017999,2]
[358104432,1744720239877,-55800.51914913,0.00018,2]
[358104433,1744720239888,-1240.0,0.00018,2]
[358104434,1744720239901,-152.0,0.00018,2]
[358104435,1744720239910,-698.0,0.00018,2]
[358104436,1744720239920,-93772.82464373,0.00018,2]
[358104437,1744720239935,-52062.02386131,0.00018,2]
[358104438,1744720239954,-14332.06035652,0.00018,2]
[358104439,1744720239966,-3000.0,0.00018,2]
[358104440,1744720239978,-487.52557497,0.00018,2]
[358104441,1744720240058,-400.15737426,0.00018,2]
[358104442,1744720240118,-538.49795999,0.00018,2]
[358104471,1744720242742,-258.55435841,0.00018,2]
[358104473,1744720242755,-1241.44564159,0.00018,2]
[358104485,1744720244829,-5657.78061867,0.00018,2]
[358104486,1744720244841,-410999.99999995,0.00018,2]
[358104490,1744720245807,-8.1e-07,0.00018,2]
[358104491,1744720245819,-2441.00000002,0.00018,2]
[358104492,1744720245835,-547.17499866,0.00018,2]
[358104493,1744720245846,-1398.55544029,0.00018,2]
[358104494,1744720245923,-44141.65816299,0.00018,2]
[358104496,1744720263551,1390.0,0.00027,30]
[358104497,1744720296205,-346.6201081,0.00022,23]
[358104499,1744720350878,295.0,0.00017725,2]
[358104500,1744720355700,-1800.0,0.00023,24]
[358104501,1744720440466,95.46218679,0.00017574,2]
[358104503,1744720506420,2751.0,0.00017416,2]
[358104504,1744720541735,390.17,0.000269,31]
[358104505,1744720541787,390.17,0.000269,31]
[358104506,1744720541854,390.17,0.000269,31]
[358104507,1744720541909,390.17,0.000269,31]
[358104508,1744720541984,390.17,0.000269,31]
[358104509,1744720542034,390.17,0.000269,31]
[358104510,1744720542234,390.17,0.000269,31]
[358104511,1744720542283,390.17,0.000269,31]
[358104512,1744720542333,390.17,0.000269,31]
[358104513,1744720542387,390.17,0.000269,31]
[358104514,1744720542451,390.17,0.000269,31]
[358104515,1744720542507,390.17,0.000269,31]
[358104516,1744720542560,390.17,0.000269,31]
[358104517,1744720542615,390.17,0.000269,31]
[358104518,1744720542680,390.17,0.000269,31]
[358104519,1744720542743,390.17,0.000269,31]
[358104520,1744720567486,4810.117123,7.945e-05,2]
[358104521,1744720604618,1000.0,0.0001745,2]
[358104523,1744720629368,151.55,0.0001745,2]
[358104524,1744720629594,151.55,0.0001746,2]
[358104525,1744720629796,151.55,0.00017469,2]
[358104526,1744720630009,151.55,0.00017479,2]
[358104527,1744720630213,151.55,0.00017489,2]
[358104528,1744720630408,151.55,0.00017499,2]
[358104529,1744720661512,8247.66,0.00017328,2]
[358104530,1744720823080,178.94,0.00017333,2]
[358104531,1744720874025,200.0,0.00017378,2]
[358104532,1744720990104,2053.0,0.00017486,2]
[358104538,1744721103382,1246.86,0.00015329,2]
[358104540,1744721153820,327.78,0.000269,31]
[358104541,1744721153869,327.78,0.000269,31]
[358104542,1744721153925,327.78,0.000269,31]
[358104543,1744721153990,327.78,0.000269,31]
[358104544,1744721154050,327.78,0.000269,31]
[358104545,1744721154105,327.78,0.000269,31]
[358104546,1744721154164,327.78,0.000269,31]
[358104547,1744721154225,327.78,0.000269,31]
[358104548,1744721154286,327.78,0.000269,31]
[358104549,1744721154348,327.78,0.000269,31]
[358104550,1744721154407,327.78,0.000269,31]
[358104551,1744721154482,327.78,0.000269,31]
[358104552,1744721154531,327.78,0.000269,31]
[358104553,1744721154833,327.78,0.000269,31]
[358104554,1744721154881,327.78,0.000269,31]
[358104555,1744721154925,327.78,0.000269,31]
[358104558,1744721197694,-151.55,0.00017508,2]
[358104559,1744721197717,-250.0,0.00017511,2]
[358104560,1744721197741,-151.55,0.00017518,2]
[358104561,1744721197765,-151.55,0.00017528,2]
[358104562,1744721197787,-179.0,0.00017537,2]
[358104563,1744721197814,-151.55,0.00017537,2]
[358104564,1744721197836,-154.53781321,0.00017574,2]
[358104565,1744721197858,-1246.86,0.00017593,2]
[358104575,1744721369318,212.17,0.00017261,2]
[358104578,1744721402613,1024.48,0.00017219,2]
[358104579,1744721402716,350.0,0.00017666,12]
[358104580,1744721402787,350.0,0.00017746,12]
[358104581,1744721405711,1504.56,0.00017,2]
[358104582,1744721407371,1504.56,0.00017,2]
[358104584,1744721419165,1042.77,0.00017486,2]
[358104596,1744721431872,-787.6508,0.000178,2]
[358104597,1744721431882,-1539.0,0.000178,2]
[358104598,1744721431892,-250.0,0.0001781,2]
[358104599,1744721431902,-156.7467538,0.0001782,2]
[358104600,1744721431911,-250.0,0.00017899,2]
[358104601,1744721431920,-300.0,0.00017899,2]
[358104602,1744721431930,-300.0,0.00017899,2]
[358104603,1744721431941,-6243.78611368,0.000179,2]
[358104604,1744721431988,-1429.82091841,0.000179,2]
[358104735,1744721437931,-2148.962926,0.00017621,2]
[358104736,1744721437941,-9973.51865418,0.000179,2]
[358104737,1744721437990,-3197.48755594,0.000179,2]
[358104738,1744721438001,-1703.14222419,0.000179,2]
[358104739,1744721438054,-2615.7440336,0.000179,2]
[358104740,1744721438064,-5711.7065,0.000179,2]
[358104741,1744721438073,-1000.0,0.000179,2]
[358104742,1744721438083,-254.7985,0.000179,2]
[358104743,1744721438092,-500.0,0.000179,2]
[358104744,1744721438101,-11215.0379,0.000179,2]
[358104745,1744721438110,-883.43758529,0.000179,2]
[358104746,1744721438120,-42447.76730563,0.000179,2]
[358104747,1744721438130,-60929.9639444,0.000179,2]
[358104748,1744721438139,-164.26111006,0.000179,2]
[358104749,1744721438149,-1732.52792225,0.000179,2]
[358104750,1744721438159,-173.81361329,0.000179,2]
[358104751,1744721438168,-1291.50475579,0.00017948,2]
[358104752,1744721438178,-692.0,0.00017973,2]
[358104753,1744721438187,-5058.0,0.00017973,2]
[358104754,1744721438197,-500.99669139,0.00017973,2]
[358104755,1744721438207,-507.98354872,0.00017973,2]
[358104756,1744721438217,-403.44864785,0.00017973,2]
[358104757,1744721438226,-500.0,0.00017973,2]
[358104758,1744721438235,-161.04467997,0.00017973,2]
[358104759,1744721438245,-301.64424214,0.00017973,2]
[358104760,1744721438255,-502.72153642,0.00017973,2]
[358104761,1744721438266,-500.0,0.00017973,2]
[358104763,1744721438459,-627.879,0.00017989,2]
[358104765,1744721438469,-668.65185757,0.00017989,2]
[358104767,1744721438479,-207.4,0.00017989,2]
[358104769,1744721438489,-344.48874434,0.0001799,2]
[358104771,1744721438498,-344.48874434,0.0001799,2]
[358104773,1744721438508,-344.48874434,0.0001799,2]
[358104775,1744721438518,-500.0,0.00017999,2]
[358104776,1744721438527,-500.0,0.00017999,2]
[358104778,1744721438536,-500.0,0.00017999,2]
[358104780,1744721438546,-500.0,0.00017999,2]
[358104782,1744721438556,-500.0,0.00017999,2]
[358104784,1744721438567,-500.0,0.00017999,2]
[358104786,1744721438577,-500.0,0.00017999,2]
[358104788,1744721438587,-500.0,0.00017999,2]
[358104790,1744721438596,-500.0,0.00017999,2]
[358104793,1744721438606,-500.0,0.00017999,2]
[358104795,1744721438615,-500.0,0.00017999,2]
[358104797,1744721438624,-500.0,0.00017999,2]
[358104799,1744721438634,-500.0,0.00017999,2]
[358104801,1744721438643,-500.0,0.00017999,2]
[358104803,1744721438654,-500.0,0.00017999,2]
[358104805,1744721438664,-500.0,0.00017999,2]
[358104806,1744721438673,-500.0,0.00017999,2]
[358104807,1744721438682,-500.0,0.00017999,2]
[358104808,1744721438691,-500.0,0.00017999,2]
[358104809,1744721438700,-325.12618709,0.00017999,2]
[358104810,1744721438711,-500.0,0.00017999,2]
[358104811,1744721438721,-500.0,0.00017999,2]
[358104812,1744721438729,-500.0,0.00017999,2]
[358104813,1744721438739,-211.53,0.00017999,2]
[358104814,1744721438748,-500.0,0.00017999,2]
[358104815,1744721438756,-500.0,0.00017999,2]
[358104816,1744721438765,-500.0,0.00017999,2]
[358104817,1744721438775,-500.0,0.00017999,2]
[358104818,1744721438784,-500.0,0.00017999,2]
[358104819,1744721438793,-500.0,0.00017999,2]
[358104820,1744721438802,-500.0,0.00017999,2]
[358104821,1744721438811,-500.0,0.00017999,2]
[358104822,1744721438820,-513.10596433,0.00017999,2]
[358104823,1744721438829,-213.89587466,0.00017999,2]
[358104824,1744721438838,-500.0,0.00017999,2]
[358104825,1744721438847,-500.0,0.00017999,2]
[358104826,1744721438860,-500.0,0.00017999,2]
[358104827,1744721438869,-500.0,0.00017999,2]
[358104828,1744721438877,-150.0,0.00017999,2]
[358104829,1744721438885,-500.0,0.00017999,2]
[358104830,1744721438895,-500.0,0.00017999,2]
[358104831,1744721438903,-500.0,0.00017999,2]
[358104833,1744721438912,-524.63404989,0.00017999,2]
[358104835,1744721438924,-500.0,0.00017999,2]
[358104837,1744721438939,-500.0,0.00017999,2]
[358104839,1744721438948,-500.0,0.00017999,2]
[358104842,1744721438959,-500.0,0.00017999,2]
[358104844,1744721438969,-500.0,0.00017999,2]
[358104845,1744721438979,-156.34320295,0.00017999,2]
[358104848,1744721438988,-500.0,0.00017999,2]
[358104849,1744721438998,-500.0,0.00017999,2]
[358104851,1744721439007,-500.0,0.00017999,2]
[358104853,1744721439016,-500.0,0.00017999,2]
[358104856,1744721439026,-500.0,0.00017999,2]
[358104857,1744721439035,-500.0,0.00017999,2]
[358104859,1744721439044,-471.47510692,0.00017999,2]
[358104861,1744721439053,-510.38379118,0.00017999,2]
[358104863,1744721439063,-500.0,0.00017999,2]
[358104865,1744721439072,-500.0,0.00017999,2]
[358104867,1744721439081,-489.39448947,0.00017999,2]
[358104869,1744721439090,-500.0,0.00017999,2]
[358104871,1744721439099,-507.41322393,0.00017999,2]
[358104873,1744721439108,-500.0,0.00017999,2]
[358104875,1744721439117,-513.07947964,0.00017999,2]
[358104877,1744721439126,-200.0,0.00017999,2]
[358104879,1744721439136,-500.0,0.00017999,2]
[358104881,1744721439145,-500.0,0.00017999,2]
[358104883,1744721439154,-346.18,0.00017999,2]
[358104885,1744721439163,-523.57679509,0.00017999,2]
[358104887,1744721439172,-500.0,0.00017999,2]
[358104889,1744721439183,-500.0,0.00017999,2]
[358104891,1744721439193,-150.0,0.00017999,2]
[358104893,1744721439201,-500.0,0.00017999,2]
[358104895,1744721439212,-381.14,0.00017999,2]
[358104897,1744721439222,-500.0,0.00017999,2]
[358104899,1744721439231,-500.0,0.00017999,2]
[358104901,1744721439240,-500.0,0.00017999,2]
[358104903,1744721439250,-500.0,0.00017999,2]
[358104905,1744721439259,-500.0,0.00017999,2]
[358104908,1744721439272,-500.0,0.00017999,2]
[358104909,1744721439281,-500.0,0.00017999,2]
[358104911,1744721439291,-573.57,0.00017999,2]
[358104914,1744721439304,-187.75974797,0.00017999,2]
[358104915,1744721439314,-500.0,0.00017999,2]
[358104917,1744721439323,-178.64796765,0.00017999,2]
[358104919,1744721439332,-500.0,0.00017999,2]
[358104921,1744721439342,-282.78264585,0.00017999,2]
[358104923,1744721439351,-500.0,0.00017999,2]
[358104925,1744721439360,-500.0,0.00017999,2]
[358104927,1744721439370,-500.0,0.00017999,2]
[358104929,1744721439379,-524.39,0.00017999,2]
[358104931,1744721439388,-500.0,0.00017999,2]
[358104933,1744721439398,-500.18897332,0.00017999,2]
[358104935,1744721439408,-500.0,0.00017999,2]
[358104937,1744721439418,-150.0,0.00017999,2]
[358104939,1744721439428,-500.0,0.00017999,2]
[358104941,1744721439437,-500.0,0.00017999,2]
[358104943,1744721439447,-500.0,0.00017999,2]
[358104945,1744721439458,-500.0,0.00017999,2]
[358104947,1744721439468,-150.0,0.00017999,2]
[358104949,1744721439478,-150.0,0.00017999,2]
[358104951,1744721439488,-500.0,0.00017999,2]
[358104953,1744721439497,-500.0,0.00017999,2]
[358104955,1744721439507,-193.16,0.00017999,2]
[358104957,1744721439517,-500.0,0.00017999,2]
[358104959,1744721439526,-500.0,0.00017999,2]
[358104961,1744721439536,-462.52,0.00017999,2]
[358104963,1744721439545,-500.0,0.00017999,2]
[358104965,1744721439555,-500.0,0.00017999,2]
[358104967,1744721439565,-500.0,0.00017999,2]
[358104969,1744721439575,-500.0,0.00017999,2]
[358104971,1744721439584,-500.0,0.00017999,2]
[358104973,1744721439594,-500.0,0.00017999,2]
[358104975,1744721439603,-500.0,0.00017999,2]
[358104977,1744721439613,-312.94,0.00017999,2]
[358104979,1744721439623,-500.0,0.00017999,2]
[358104980,1744721439633,-500.0,0.00017999,2]
[358104982,1744721439642,-358.6435958,0.00017999,2]
[358104984,1744721439652,-568.56,0.00017999,2]
[358104985,1744721439661,-500.0,0.00017999,2]
[358104986,1744721439671,-500.0,0.00017999,2]
[358104987,1744721439680,-500.0,0.00017999,2]
[358104988,1744721439691,-500.0,0.00017999,2]
[358104989,1744721439700,-500.0,0.00017999,2]
[358104990,1744721439710,-500.0,0.00017999,2]
[358104991,1744721439720,-500.0,0.00017999,2]
[358104992,1744721439730,-500.0,0.00017999,2]
[358104993,1744721439739,-500.0,0.00017999,2]
[358104994,1744721439749,-500.0,0.00017999,2]
[358104995,1744721439759,-500.0,0.00017999,2]
[358104996,1744721439768,-500.0,0.00017999,2]
[358104997,1744721439777,-500.0,0.00017999,2]
[358104999,1744721439787,-500.0,0.00017999,2]
[358105000,1744721439796,-500.0,0.00017999,2]
[358105001,1744721439806,-500.0,0.00017999,2]
[358105002,1744721439815,-500.0,0.00017999,2]
[358105003,1744721439824,-500.0,0.00017999,2]
[358105004,1744721439834,-500.0,0.00017999,2]
[358105005,1744721439843,-500.0,0.00017999,2]
[358105006,1744721439857,-500.0,0.00017999,2]
[358105007,1744721439867,-500.0,0.00017999,2]
[358105008,1744721439876,-507.34,0.00017999,2]
[358105009,1744721439886,-2069.0,0.00017999,2]
[358105010,1744721439897,-500.0,0.00017999,2]
[358105011,1744721439907,-500.0,0.00017999,2]